bitfinex-derivatives/quotes_ETHF0:USTF0_20260119
["timestamp","ask_amount","ask_price","bid_price","bid_amount"]
[1768843747756,1.21171661,3224.5,3223.4,1.28468259]
[1768843747966,1.21171661,3224.4,3223.4,1.28468259]
[1768843748266,7.9917209,3224.9,3223.5,0.1360601]
[1768843748478,1.21142394,3224.8,3223.5,0.1360601]
[1768843748763,1.21142394,3224.7,3223.5,0.1360601]
[1768843748968,0.87221014,3224.6,3223.7,0.1360601]
[1768843749268,1.28468259,3224.9,3223.7,0.1360601]
[1768843749470,1.21070147,3224.8,3223.7,0.1360601]
[1768843749671,0.87168984,3224.7,3223.7,0.1360601]
[1768843749863,1.28468259,3224.9,3223.7,0.1360601]
[1768843750060,1.21069766,3224.8,3223.7,0.1360601]
[1768843750371,0.87168709,3224.7,3223.8,1.42074269]
[1768843750554,1.28468259,3225.0,3223.8,1.42074269]
[1768843750760,0.87132585,3224.9,3223.8,1.42074269]
[1768843750967,0.87132585,3224.8,3223.8,1.42074269]
[1768843751170,1.28468259,3225.0,3223.8,1.42074269]
[1768843751473,0.87102837,3224.9,3223.8,1.42074269]
[1768843751672,0.87102837,3224.8,3223.8,1.42074269]
[1768843751862,1.28468259,3225.0,3223.8,1.42074269]
[1768843752062,0.87098997,3224.9,3223.8,1.42074269]
[1768843752359,1.28468259,3225.0,3223.8,1.42074269]
[1768843752562,0.87071756,3224.9,3223.8,1.42074269]
[1768843752861,1.28468259,3225.0,3223.8,1.42074269]
[1768843753061,0.87071746,3224.9,3223.8,1.42074269]
[1768843753264,1.28468259,3225.0,3223.8,1.42074269]
[1768843753464,0.87049183,3224.9,3223.8,1.42074269]
[1768843753771,1.28468259,3225.0,3223.8,1.42074269]
[1768843753967,0.87047355,3224.9,3223.8,1.42074269]
[1768843754162,1.28468259,3225.0,3223.8,1.42074269]
[1768843756974,1.28468259,3225.0,3223.8,0.1360601]
[1768843758878,0.00323604,3225.2,3224.2,0.1360601]
[1768843763079,0.00323604,3225.2,3224.3,1.42777706]
[1768843763284,0.00323604,3225.2,3224.3,0.14309447]
[1768843768194,0.00323604,3225.2,3224.1,1.28468259]
[1768843768195,0.00323604,3225.2,3224.6,0.14309447]
[1768843774082,1.43976259,3225.8,3224.6,0.14309447]
[1768843774276,0.8705355,3225.7,3224.6,0.14309447]
[1768843774576,1.43976259,3225.8,3224.6,0.14309447]
[1768843774779,0.87053353,3225.7,3224.6,0.14309447]
[1768843775086,0.00256622,3225.7,3224.6,0.14309447]
[1768843776186,0.00256622,3225.7,3224.8,0.14309447]
[1768843793386,0.00256622,3225.7,3223.9,0.13295647]
[1768843797106,0.87232441,3225.6,3223.9,0.13295647]
[1768843797406,0.00256622,3225.7,3223.9,0.13295647]
[1768843798106,0.87245033,3225.6,3223.9,0.13295647]
[1768843798297,0.00256622,3225.7,3223.9,0.13295647]
[1768843798491,0.8724506,3225.6,3223.9,0.13295647]
[1768843798702,0.00256622,3225.7,3223.9,0.13295647]
[1768843799003,0.87245049,3225.6,3224.0,0.13295647]
[1768843799204,0.00256622,3225.7,3224.0,0.28811647]
[1768843799505,0.00256622,3225.7,3224.3,0.13295647]
[1768843803109,0.87267167,3225.6,3224.3,0.13295647]
[1768843803310,0.00256622,3225.7,3224.3,0.13295647]
[1768843803608,0.87268758,3225.6,3224.3,0.13295647]
[1768843803809,0.00256622,3225.7,3224.3,0.13295647]
[1768843804009,0.87268758,3225.6,3224.3,0.13295647]
[1768843804209,0.00256622,3225.7,3224.3,0.13295647]
[1768843804400,0.87272412,3225.6,3224.3,0.13295647]
[1768843804601,0.00256622,3225.7,3224.3,0.13295647]
[1768843804802,0.87272417,3225.6,3224.3,0.13295647]
[1768843805002,0.00256622,3225.7,3224.3,0.13295647]
[1768843805198,0.87272401,3225.6,3224.3,0.13295647]
[1768843805512,0.00256622,3225.7,3224.3,0.13295647]
[1768843805712,0.87275833,3225.6,3224.3,0.13295647]
[1768843806015,0.00256622,3225.7,3224.3,0.13295647]
[1768843806311,0.87276451,3225.6,3224.3,0.13295647]
[1768843806512,0.00256622,3225.7,3224.3,0.13295647]
[1768843806702,0.87277479,3225.6,3224.3,0.13295647]
[1768843806904,0.00256622,3225.7,3224.3,0.13295647]
[1768843807106,0.87277462,3225.6,3224.3,0.13295647]
[1768843807412,0.00256622,3225.7,3224.3,0.13295647]
[1768843807610,0.87278652,3225.6,3224.3,0.13295647]
[1768843807811,0.00256622,3225.7,3224.3,0.13295647]
[1768843808013,0.87278652,3225.6,3224.3,0.13295647]
[1768843808212,0.00256622,3225.7,3224.3,0.13295647]
[1768843808416,0.87279873,3225.6,3224.3,0.13295647]
[1768843808612,0.00256622,3225.7,3224.3,0.13295647]
[1768843808916,1.28295308,3225.1,3223.7,0.13295647]
[1768843809106,0.8728464,3225.0,3223.7,0.13295647]
[1768843809513,0.33898023,3224.9,3223.7,0.13295647]
[1768843809716,0.8728464,3224.8,3223.7,0.13295647]
[1768843810017,1.28295308,3225.1,3223.7,0.13295647]
[1768843810216,1.21131956,3225.0,3223.7,0.13295647]
[1768843810517,1.21131956,3224.9,3223.7,0.13295647]
[1768843810718,1.21131956,3224.8,3223.7,0.13295647]
[1768843810916,0.87252833,3224.7,3223.7,0.13295647]
[1768843811107,1.28295308,3225.1,3223.7,0.13295647]
[1768843811312,1.21003239,3225.0,3223.7,0.13295647]
[1768843811512,1.21003239,3224.9,3223.7,0.13295647]
[1768843811711,0.87145846,3224.8,3223.7,0.13295647]
[1768843811912,1.28295308,3225.1,3223.7,0.13295647]
[1768843812115,1.21003246,3225.0,3223.7,0.13295647]
[1768843812315,1.28295308,3225.1,3223.7,0.13295647]
[1768843812316,0.87145851,3224.9,3223.7,0.13295647]
[1768843812516,0.87145851,3224.8,3223.7,0.13295647]
[1768843812714,1.28295308,3225.1,3223.7,0.13295647]
[1768843812914,1.20945773,3225.0,3223.7,0.13295647]
[1768843813122,0.87104674,3224.9,3223.7,0.13295647]
[1768843813321,0.87104674,3224.8,3223.7,0.13295647]
[1768843813528,1.28295308,3225.1,3223.7,0.13295647]
[1768843813713,1.20899682,3225.0,3223.7,0.13295647]
[1768843813909,0.87071623,3224.9,3223.7,0.13295647]
[1768843814115,1.28295308,3225.1,3223.7,0.13295647]
[1768843814314,1.20861748,3225.0,3223.7,0.13295647]
[1768843814517,0.87044394,3224.9,3223.7,0.13295647]
[1768843814713,1.28295308,3225.1,3223.7,0.13295647]
[1768843814918,1.20861748,3225.0,3223.7,0.13295647]
[1768843815118,0.87044394,3224.9,3223.7,0.13295647]
[1768843815423,1.28295308,3225.1,3223.7,0.13295647]
[1768843815622,0.87021036,3225.0,3223.7,0.13295647]
[1768843815829,0.87021036,3224.9,3223.7,0.13295647]
[1768843816018,1.28295308,3225.1,3223.7,0.13295647]
[1768843816326,0.87018184,3225.0,3223.7,0.13295647]
[1768843816525,1.6707209,3225.6,3223.7,0.13295647]
[1768843816712,1.2080529,3225.5,3223.7,0.13295647]
[1768843816912,1.2080529,3225.4,3223.7,0.13295647]
[1768843817125,1.2080529,3225.3,3223.7,0.13295647]
[1768843817317,0.87003744,3225.2,3223.7,0.13295647]
[1768843817627,0.87003744,3225.1,3223.7,0.13295647]
[1768843817925,0.1551,3225.4,3223.7,0.13295647]
[1768843818124,1.2073344,3225.3,3223.7,0.13295647]
[1768843818322,0.86933788,3225.2,3223.7,0.13295647]
[1768843818518,0.1551,3225.4,3223.7,0.13295647]
[1768843818720,0.86932562,3225.3,3223.7,0.13295647]
[1768843818921,0.86932562,3225.2,3223.7,0.13295647]
[1768843819123,0.1551,3225.4,3223.7,0.13295647]
[1768843819324,0.86936174,3225.3,3223.7,0.13295647]
[1768843819621,0.86936174,3225.2,3223.7,0.13295647]
[1768843819927,0.1551,3225.4,3223.7,0.13295647]
[1768843820130,1.20740736,3225.3,3223.7,0.13295647]
[1768843820328,0.86936176,3225.2,3223.7,0.13295647]
[1768843820531,0.1551,3225.4,3223.7,0.13295647]
[1768843820725,0.86943386,3225.3,3223.7,0.13295647]
[1768843820927,0.86943386,3225.2,3223.7,0.13295647]
[1768843821130,0.1551,3225.4,3223.7,0.13295647]
[1768843821430,0.86954196,3225.3,3223.7,0.13295647]
[1768843821628,0.86954196,3225.2,3223.7,0.13295647]
[1768843821828,0.1551,3225.4,3223.7,0.13295647]
[1768843822020,0.86954196,3225.3,3223.7,0.13295647]
[1768843822316,0.86954196,3225.2,3223.7,0.13295647]
[1768843822514,0.1551,3225.4,3223.7,0.13295647]
[1768843822729,1.20782481,3225.3,3223.7,0.13295647]
[1768843822925,0.86967673,3225.2,3223.7,0.13295647]
[1768843823127,0.1551,3225.4,3223.7,0.13295647]
[1768843823427,1.20803118,3225.3,3223.7,0.13295647]
[1768843823626,0.86982111,3225.2,3223.7,0.13295647]
[1768843823926,0.1551,3225.4,3223.7,0.13295647]
[1768843824126,1.20803147,3225.3,3223.7,0.13295647]
[1768843824320,0.86982132,3225.2,3223.7,0.13295647]
[1768843824522,0.1551,3225.4,3223.7,0.13295647]
[1768843824820,1.2081172,3225.3,3223.7,0.13295647]
[1768843825023,0.86988009,3225.2,3223.7,0.13295647]
[1768843825222,0.1551,3225.4,3223.7,0.13295647]
[1768843825424,1.20819369,3225.3,3223.7,0.13295647]
[1768843825624,0.86993793,3225.2,3223.7,0.13295647]
[1768843825925,0.1551,3225.4,3223.7,0.13295647]
[1768843826125,1.20819348,3225.3,3223.7,0.13295647]
[1768843826330,0.86993778,3225.2,3223.7,0.13295647]
[1768843826528,0.1551,3225.4,3223.7,0.13295647]
[1768843826729,1.20829171,3225.3,3223.7,0.13295647]
[1768843826930,0.87000851,3225.2,3223.7,0.13295647]
[1768843827130,0.1551,3225.4,3223.7,0.13295647]
[1768843827331,1.20840954,3225.3,3223.7,0.13295647]
[1768843827532,0.87009337,3225.2,3223.7,0.13295647]
[1768843827834,0.87009337,3225.1,3223.7,0.13295647]
[1768843828032,0.1551,3225.4,3223.7,0.13295647]
[1768843828327,1.2084764,3225.3,3223.7,0.13295647]
[1768843828539,0.87014099,3225.2,3223.7,0.13295647]
[1768843828721,0.1551,3225.4,3223.7,0.13295647]
[1768843828926,0.87016716,3225.3,3223.7,0.13295647]
[1768843829128,0.87016716,3225.2,3223.7,0.13295647]
[1768843829325,0.1551,3225.4,3223.7,0.13295647]
[1768843829535,0.8702884,3225.3,3223.7,0.13295647]
[1768843829735,0.1551,3225.4,3223.7,0.13295647]
[1768843829938,0.87027382,3225.3,3223.9,0.14080411]
[1768843830139,0.1551,3225.4,3223.9,0.14080411]
[1768843831338,0.00256622,3225.7,3223.9,0.14080411]
[1768843831538,1.20878669,3225.6,3223.9,0.14080411]
[1768843831739,0.87036366,3225.5,3223.9,0.14080411]
[1768843831930,0.00256622,3225.7,3223.9,0.14080411]
[1768843832130,1.20878173,3225.6,3223.9,0.14080411]
[1768843832331,0.87036013,3225.5,3223.9,0.14080411]
[1768843832530,0.00256622,3225.7,3223.9,0.14080411]
[1768843832731,1.20893785,3225.6,3223.9,0.14080411]
[1768843832940,0.87047242,3225.5,3223.9,0.14080411]
[1768843833130,0.00256622,3225.7,3223.9,0.14080411]
[1768843833424,1.20910287,3225.6,3223.9,0.14080411]
[1768843833629,0.87059118,3225.5,3223.9,0.14080411]
[1768843833830,0.00256622,3225.7,3223.9,0.14080411]
[1768843834030,1.20910437,3225.6,3223.9,0.14080411]
[1768843834230,0.87059226,3225.5,3223.9,0.14080411]
[1768843834430,0.00256622,3225.7,3223.9,0.14080411]
[1768843834641,1.20926118,3225.6,3223.9,0.14080411]
[1768843834835,0.87070294,3225.5,3223.9,0.14080411]
[1768843835036,0.87070294,3225.4,3223.9,0.14080411]
[1768843835339,0.00256622,3225.7,3223.9,0.14080411]
[1768843835542,1.20947786,3225.6,3223.9,0.14080411]
[1768843835840,0.87086018,3225.5,3223.9,0.14080411]
[1768843836044,0.87086018,3225.4,3223.9,0.14080411]
[1768843836340,0.00256622,3225.7,3223.9,0.14080411]
[1768843836541,1.20968346,3225.6,3223.9,0.14080411]
[1768843836741,1.20968346,3225.5,3223.9,0.14080411]
[1768843837041,0.87100793,3225.4,3223.9,0.14080411]
[1768843837228,0.00256622,3225.7,3223.9,0.14080411]
[1768843837427,1.20990401,3225.6,3223.9,0.14080411]
[1768843837640,1.20990401,3225.5,3223.9,0.14080411]
[1768843837840,0.87116676,3225.4,3223.9,0.14080411]
[1768843838043,0.00256622,3225.7,3223.9,0.14080411]
[1768843838242,1.20996092,3225.6,3224.0,0.14080411]
[1768843838542,1.20996092,3225.5,3224.0,0.14080411]
[1768843838742,0.87115871,3225.4,3224.0,0.14080411]
[1768843838946,0.00256622,3225.7,3224.0,0.14080411]
[1768843839146,1.21011964,3225.6,3224.0,0.14080411]
[1768843839348,1.21011964,3225.5,3224.0,0.14080411]
[1768843839539,0.87132171,3225.4,3224.1,0.14080411]
[1768843839843,0.00256622,3225.7,3224.1,0.14080411]
[1768843840046,1.21001825,3225.6,3224.1,0.14080411]
[1768843840250,0.87124887,3225.5,3224.1,0.14080411]
[1768843840544,0.00256622,3225.7,3224.3,0.13287006]
[1768843840738,0.87118892,3225.6,3224.3,0.13287006]
[1768843840939,0.00256622,3225.7,3224.6,0.13287006]
[1768843841140,0.87118892,3225.6,3224.6,0.13287006]
[1768843841449,0.00256622,3225.7,3224.6,0.13287006]
[1768843841643,0.87113643,3225.6,3224.6,0.13287006]
[1768843841845,0.00256622,3225.7,3224.6,0.13287006]
[1768843842044,0.87113396,3225.6,3224.6,0.13287006]
[1768843842347,0.00256622,3225.7,3224.6,0.13287006]
[1768843847562,1.2855925,3225.7,3224.6,0.13287006]
[1768843848457,1.2855925,3225.7,3224.0,40.8]
[1768843848458,1.3859207,3225.7,3224.0,40.8]
[1768843848650,1.28302628,3224.2,3223.4,3.88402882]
[1768843848854,1.28302628,3224.2,3223.2,0.13287006]
[1768843849359,1.28302628,3224.4,3223.2,0.13287006]
[1768843849663,1.28302628,3224.1,3223.2,0.13287006]
[1768843850061,1.28302628,3223.9,3222.8,0.13287006]
[1768843850363,0.15515,3224.3,3222.7,0.00361692]
[1768843850364,1.28302628,3223.7,3222.7,0.00361692]
[1768843853659,1.28302628,3223.9,3222.7,0.00361692]
[1768843853864,1.28302628,3223.6,3222.7,0.00361692]
[1768843854263,1.28302628,3223.8,3222.7,0.00361692]
[1768843856577,0.25545981,3224.3,3222.7,0.00361692]
[1768843856773,1.28302628,3223.9,3222.7,0.00361692]
[1768843857578,0.15515,3224.3,3222.8,0.13293672]
[1768843858074,1.28302628,3224.1,3222.8,0.13293672]
[1768843859463,0.15515,3224.3,3222.8,0.13293672]
[1768843859668,1.28302628,3224.0,3222.8,0.13293672]
[1768843860275,1.28302628,3223.8,3222.7,0.00361692]
[1768843862081,1.28302628,3224.0,3222.7,0.00361692]
[1768843863081,1.28302628,3224.0,3222.7,0.13655364]
[1768843863285,1.28302628,3224.0,3222.7,1.41957992]
[1768843863881,1.28302628,3224.0,3222.7,0.13655364]
[1768843864777,0.15515,3224.3,3222.7,0.13655364]
[1768843864984,1.28302628,3224.0,3222.7,0.13655364]
[1768843873585,0.15515,3224.3,3223.0,0.13293672]
[1768843873782,1.28302628,3224.4,3223.1,1.28302628]
[1768843874483,1.28302628,3224.2,3223.0,0.13293672]
[1768843877282,0.87013859,3224.1,3223.0,0.13293672]
[1768843877488,1.28302628,3224.2,3223.0,0.13293672]
[1768843877785,0.87672331,3224.1,3223.0,0.13293672]
[1768843877986,1.28302628,3224.2,3223.0,0.13293672]
[1768843878180,1.21598613,3224.1,3223.0,0.13293672]
[1768843878377,0.87672331,3224.0,3223.0,0.13293672]
[1768843878580,0.87672331,3223.9,3223.0,0.13293672]
[1768843878782,1.28302628,3224.2,3223.0,0.13293672]
[1768843878982,1.28302628,3224.0,3223.0,0.13293672]
[1768843879286,1.28302628,3223.8,3222.7,0.00361692]
[1768843880179,1.28302628,3223.9,3222.7,0.00361692]
[1768843880379,0.87931227,3223.8,3222.7,0.00361692]
[1768843880578,1.28302628,3223.9,3222.7,0.00361692]
[1768843880788,0.87930748,3223.8,3222.7,0.00361692]
[1768843880991,1.28302628,3223.9,3222.7,0.00361692]
[1768843881292,0.87930731,3223.8,3222.7,0.00361692]
[1768843881590,1.28302628,3223.9,3222.7,0.00361692]
[1768843881785,0.87929736,3223.8,3222.7,0.00361692]
[1768843881987,1.28302628,3223.9,3222.7,0.00361692]
[1768843881988,1.28302628,3223.3,3222.7,0.00361692]
[1768843882288,1.28551074,3223.3,3222.1,0.13293672]
[1768843882680,0.00248446,3223.3,3222.1,0.13293672]
[1768843882882,0.00248446,3223.3,3222.2,1.28302628]
[1768843883083,0.00248446,3223.3,3222.2,1.28606216]
[1768843883992,0.00248446,3223.3,3222.2,1.42263435]
[1768843884393,0.00248446,3223.3,3222.2,0.13960807]
[1768843884784,1.28302628,3223.1,3222.2,0.13960807]
[1768843885487,1.28302628,3222.9,3222.2,0.00303588]
[1768843886292,1.28302628,3223.1,3222.2,0.00303588]
[1768843886493,0.87828523,3223.0,3222.2,0.00303588]
[1768843886792,1.28302628,3223.1,3222.2,0.00303588]
[1768843887093,0.87828533,3223.0,3222.2,0.00303588]
[1768843887280,1.28302628,3222.9,3222.2,0.00303588]
[1768843887484,1.28302628,3222.9,3221.8,0.13657219]
[1768843888488,1.28302628,3222.9,3221.8,0.14046818]
[1768843888692,1.28302628,3223.1,3221.8,0.14046818]
[1768843890292,1.28302628,3222.5,3221.8,0.00389599]
[1768843890886,1.28302628,3222.3,3221.3,0.13657219]
[1768843891293,0.15522,3223.1,3221.5,0.13657219]
[1768843891493,1.28302628,3222.8,3221.5,0.13657219]
[1768843891693,0.87669472,3222.7,3221.5,0.13657219]
[1768843891892,1.28302628,3222.8,3221.5,0.13657219]
[1768843892192,0.87669479,3222.7,3221.5,0.14058962]
[1768843892394,1.28302628,3222.8,3221.5,0.14058962]
[1768843892593,0.87634535,3222.7,3221.5,0.14058962]
[1768843892797,1.28302628,3222.8,3221.5,0.14058962]
[1768843892999,0.87634552,3222.7,3221.5,0.14058962]
[1768843893297,1.28302628,3222.8,3221.5,0.14058962]
[1768843894296,1.28302628,3222.6,3221.5,0.00401743]
[1768843894493,1.28302628,3222.4,3221.5,0.00401743]
[1768843894690,1.28302628,3222.2,3220.9,0.13657219]
[1768843895300,1.28302628,3222.0,3220.9,0.13657219]
[1768843895494,1.28302628,3221.8,3220.9,0.13657219]
[1768843895691,1.28302628,3221.8,3220.9,0.00345805]
[1768843897701,1.28302628,3222.0,3220.9,0.00345805]
[1768843898002,1.28302628,3222.2,3220.9,0.00345805]
[1768843898999,1.28302628,3221.8,3220.9,0.00345805]
[1768843899198,1.28302628,3221.6,3220.9,0.00345805]
[1768843900509,1.28302628,3221.6,3220.5,0.13657219]
[1768843901010,1.28682201,3221.6,3220.1,0.13530088]
[1768843901302,0.24100908,3221.9,3220.1,0.13530088]
[1768843901303,0.08573908,3221.8,3220.1,0.13530088]
[1768843901610,0.87344666,3221.7,3220.1,0.138816]
[1768843901794,0.08573908,3221.8,3220.1,0.138816]
[1768843902109,0.8734496,3221.7,3220.1,0.138816]
[1768843902299,0.15527,3221.9,3220.1,0.138816]
[1768843903707,1.44209201,3221.9,3220.1,0.138816]
[1768843906206,0.15524,3222.5,3220.4,0.13530088]
[1768843906506,5.71066104,3222.4,3220.4,0.13530088]
[1768843906808,0.87266104,3222.3,3220.4,0.13530088]
[1768843907107,0.87266104,3222.2,3220.4,0.13530088]
[1768843907315,0.87266104,3222.1,3220.4,0.13530088]
[1768843907610,4.99324,3222.4,3220.4,0.13530088]
[1768843907802,0.87263251,3222.3,3220.4,0.13530088]
[1768843908004,4.99324,3222.4,3220.4,0.13530088]
[1768843908005,0.87263251,3222.2,3220.4,0.13530088]
[1768843908307,0.87263251,3222.1,3220.4,0.13530088]
[1768843908600,4.99324,3222.4,3220.4,0.13530088]
[1768843908805,0.87281699,3222.3,3220.4,0.13530088]
[1768843909105,0.87281699,3222.2,3220.4,0.13530088]
[1768843909306,0.87281699,3222.1,3220.4,0.13530088]
[1768843909505,4.99324,3222.4,3220.4,0.13530088]
[1768843909705,0.8730532,3222.3,3220.4,0.13530088]
[1768843909900,4.99324,3222.4,3220.4,0.13530088]
[1768843909901,0.8730532,3222.2,3220.4,0.13530088]
[1768843910104,4.99324,3222.4,3220.4,0.13530088]
[1768843910105,0.8730532,3222.1,3220.4,0.13530088]
[1768843910305,0.8733627,3222.0,3220.4,0.13530088]
[1768843910509,4.99324,3222.4,3220.4,0.13530088]
[1768843910700,0.8733627,3222.3,3220.4,0.13530088]
[1768843910905,0.8733627,3222.2,3220.4,0.13530088]
[1768843911093,0.8733627,3222.1,3220.4,0.13530088]
[1768843911298,0.8733627,3222.0,3220.4,0.13530088]
[1768843911495,5.07602276,3222.4,3220.4,0.13530088]
[1768843911698,1.21125774,3222.3,3220.4,0.13530088]
[1768843911898,0.87375511,3222.2,3220.4,0.13530088]
[1768843912099,0.87375511,3222.1,3220.4,0.13530088]
[1768843912310,0.87375511,3222.0,3220.4,0.13530088]
[1768843912508,5.07602276,3222.4,3220.4,0.13530088]
[1768843912707,1.21162949,3222.3,3220.4,0.13530088]
[1768843912914,0.87402329,3222.2,3220.4,0.13530088]
[1768843913210,0.87402329,3222.1,3220.4,0.13530088]
[1768843913415,0.87402329,3222.0,3220.4,0.13530088]
[1768843913612,0.87402329,3221.9,3220.4,0.13530088]
[1768843913811,1.732,3222.2,3220.4,0.13530088]
[1768843914117,0.87435017,3222.1,3220.4,0.13530088]
[1768843914410,0.87435017,3222.0,3220.4,0.13530088]
[1768843914609,0.87435017,3221.9,3220.4,0.13530088]
[1768843914818,1.732,3222.2,3220.4,0.13530088]
[1768843915006,1.11292004,3222.1,3220.4,0.13530088]
[1768843915206,0.87475638,3222.0,3220.4,0.13530088]
[1768843916412,1.11300797,3222.0,3220.4,0.13530088]
[1768843916601,1.28682201,3221.8,3220.4,0.13530088]
[1768843917311,0.8758049,3221.7,3220.4,0.13530088]
[1768843917514,1.28682201,3221.8,3220.4,0.13530088]
[1768843917702,0.8758049,3221.7,3220.4,0.13530088]
[1768843917906,1.28682201,3221.8,3220.4,0.13530088]
[1768843918109,0.87580257,3221.7,3220.4,0.13530088]
[1768843918415,1.28682201,3221.8,3220.4,0.13530088]
[1768843918615,1.6707209,3222.3,3220.5,0.14127643]
[1768843918914,1.732,3222.1,3220.5,0.14127643]
[1768843919117,0.87612921,3222.0,3220.5,0.14127643]
[1768843919317,0.87612921,3221.9,3220.5,0.14127643]
[1768843919503,0.87612921,3221.8,3220.5,0.14127643]
[1768843919706,0.87612921,3221.7,3220.5,0.14127643]
[1768843919906,1.732,3222.1,3220.5,0.14127643]
[1768843920108,1.21518444,3222.0,3220.5,0.14127643]
[1768843920306,0.87658601,3221.9,3220.5,0.14127643]
[1768843920512,0.87658601,3221.8,3220.5,0.14127643]
[1768843920713,0.87658601,3221.7,3220.5,0.14127643]
[1768843920915,1.732,3222.1,3220.5,0.14127643]
[1768843921116,1.21556647,3222.0,3220.5,0.14127643]
[1768843921310,0.87686096,3221.9,3220.7,0.14127643]
[1768843921510,0.87686096,3221.8,3220.7,0.14127643]
[1768843921710,3.4027209,3222.3,3220.7,0.14127643]
[1768843921922,1.21589657,3222.2,3220.7,0.14127643]
[1768843922219,1.29916116,3222.1,3220.4,0.15534]
[1768843922415,2.74125317,3222.0,3220.3,0.14127643]
[1768843922610,1.21589657,3221.9,3220.3,0.14127643]
[1768843922813,0.87709813,3221.8,3220.3,0.14127643]
[1768843923012,0.87709813,3221.7,3220.3,0.14127643]
[1768843923222,0.87709813,3221.6,3220.3,0.14127643]
[1768843923525,1.5253566,3222.0,3220.3,0.14127643]
[1768843923714,1.21697779,3221.9,3220.3,0.14127643]
[1768843923915,0.87787621,3221.8,3220.3,0.14127643]
[1768843924114,0.87787621,3221.7,3220.3,0.14127643]
[1768843924313,0.87787621,3221.6,3220.3,0.14127643]
[1768843924623,0.87843141,3221.5,3220.3,0.14127643]
[1768843924824,1.5253566,3222.0,3220.3,0.14127643]
[1768843925126,1.21775188,3221.9,3220.3,0.14127643]
[1768843925316,1.21775188,3221.8,3220.3,0.14127643]
[1768843925517,0.87843141,3221.7,3220.3,0.14127643]
[1768843925720,0.87843141,3221.6,3220.3,0.14127643]
[1768843926025,0.87843141,3221.5,3220.3,0.14127643]
[1768843926226,3.1960775,3222.0,3220.3,0.14127643]
[1768843926419,1.21825239,3221.9,3220.3,0.14127643]
[1768843926615,1.21825239,3221.8,3220.3,0.14127643]
[1768843926817,0.87880288,3221.7,3220.3,0.14127643]
[1768843927018,0.87880288,3221.6,3220.3,0.14127643]
[1768843927321,0.87880288,3221.5,3220.3,0.14127643]
[1768843927529,1.88727,3222.0,3220.4,0.14127643]
[1768843927717,1.21837438,3221.9,3220.5,0.14127643]
[1768843927911,2.22526652,3222.3,3220.1,0.00351512]
[1768843927912,0.87888442,3221.8,3220.8,0.14127643]
[1768843928117,1.6707209,3222.4,3220.8,0.14127643]
[1768843928312,0.3394678,3222.3,3220.8,0.14127643]
[1768843928518,1.21819318,3222.2,3220.8,0.14127643]
[1768843928725,1.21819318,3222.1,3220.8,0.14127643]
[1768843928912,0.87872538,3222.0,3220.8,0.14127643]
[1768843929118,0.87872538,3221.9,3220.8,0.14127643]
[1768843929422,0.87872538,3221.8,3220.8,0.14127643]
[1768843929627,1.6707209,3222.4,3220.8,0.29659643]
[1768843929925,0.3394179,3222.3,3220.8,0.29659643]
[1768843930117,1.21814181,3222.2,3220.8,0.29659643]
[1768843930318,1.21814181,3222.1,3220.8,0.29659643]
[1768843930519,0.87872391,3222.0,3220.8,0.29659643]
[1768843930721,0.87872391,3221.9,3220.8,0.29659643]
[1768843930923,1.6707209,3222.4,3220.8,0.29659643]
[1768843931230,0.33937907,3222.3,3220.8,0.29659643]
[1768843931528,1.21800006,3222.2,3220.8,0.29659643]
[1768843931723,1.21800006,3222.1,3220.9,0.14127643]
[1768843931928,0.87862099,3222.0,3220.9,0.14127643]
[1768843932126,0.87862099,3221.9,3220.9,0.14127643]
[1768843932320,1.6707209,3222.4,3220.9,0.14127643]
[1768843932521,0.33936366,3222.3,3220.9,0.14127643]
[1768843932722,1.21797325,3222.2,3220.9,0.14127643]
[1768843932917,1.21797325,3222.1,3220.9,0.14127643]
[1768843933128,0.87860959,3222.0,3220.9,0.14127643]
[1768843933328,0.87860959,3221.9,3220.9,0.14127643]
[1768843933531,1.6707209,3222.4,3220.9,0.14127643]
[1768843933832,0.33934904,3222.3,3220.9,0.14127643]
[1768843934030,1.21791847,3222.2,3220.9,0.14127643]
[1768843934225,1.21791847,3222.1,3220.9,0.14127643]
[1768843934424,0.87856943,3222.0,3220.9,0.14127643]
[1768843934630,0.87856943,3221.9,3220.9,0.14127643]
[1768843934832,1.6707209,3222.4,3220.9,0.14127643]
[1768843935030,0.33934085,3222.3,3220.9,0.14127643]
[1768843935231,1.21788685,3222.2,3220.9,0.14127643]
[1768843935533,1.21788685,3222.1,3220.9,0.14127643]
[1768843935732,0.878546,3222.0,3220.9,0.14127643]
[1768843935931,0.878546,3221.9,3220.9,0.14127643]
[1768843936122,3.5579609,3222.5,3220.9,0.14127643]
[1768843936325,1.21784946,3222.4,3220.9,0.14127643]
[1768843936523,1.21784946,3222.3,3220.9,0.14127643]
[1768843936728,1.21784946,3222.2,3220.9,0.14127643]
[1768843936926,1.21784946,3222.1,3220.9,0.14127643]
[1768843937129,0.87850899,3222.0,3220.9,0.14127643]
[1768843937325,0.87850899,3221.9,3220.9,0.14127643]
[1768843937529,3.5579609,3222.5,3220.9,0.14127643]
[1768843937830,1.21418223,3222.4,3220.9,0.14127643]
[1768843938130,1.21418223,3222.3,3220.9,0.14127643]
[1768843938332,1.21418223,3222.2,3220.9,0.14127643]
[1768843938633,0.87486975,3222.1,3220.9,0.14127643]
[1768843938823,0.87486975,3222.0,3220.9,0.14127643]
[1768843939026,3.5579609,3222.5,3220.9,0.14127643]
[1768843939232,1.21414413,3222.4,3220.9,0.14127643]
[1768843939433,1.21414413,3222.3,3220.9,0.14127643]
[1768843939629,1.21414413,3222.2,3220.9,0.14127643]
[1768843939829,0.87484191,3222.1,3220.9,0.14127643]
[1768843940033,0.87484191,3222.0,3220.9,0.14127643]
[1768843940332,3.5579609,3222.5,3220.9,0.14127643]
[1768843940534,1.21410714,3222.4,3220.9,0.14127643]
[1768843940836,1.21410691,3222.3,3221.0,0.14127643]
[1768843941032,0.87481456,3222.2,3221.0,0.14127643]
[1768843941221,0.87481456,3222.1,3221.0,0.14127643]
[1768843941426,1.732,3222.6,3221.0,0.14127643]
[1768843941627,1.21401141,3222.5,3221.0,0.14127643]
[1768843941833,1.21401141,3222.4,3221.0,0.14127643]
[1768843942131,1.21401141,3222.3,3221.0,0.14127643]
[1768843942332,0.87474525,3222.2,3221.0,0.14127643]
[1768843942638,0.87474525,3222.1,3221.0,0.14127643]
[1768843942835,1.732,3222.6,3221.0,0.14127643]
[1768843943139,1.21397777,3222.5,3221.0,0.14127643]
[1768843943327,1.21397777,3222.4,3221.0,0.14127643]
[1768843943527,1.21397777,3222.3,3221.0,0.14127643]
[1768843943726,0.87472055,3222.2,3221.0,0.14127643]
[1768843943926,0.87472055,3222.1,3221.0,0.14127643]
[1768843944131,1.732,3222.6,3221.0,0.14127643]
[1768843944324,1.21394636,3222.5,3221.0,0.14127643]
[1768843944528,1.21394636,3222.4,3221.0,0.14127643]
[1768843944733,1.21394636,3222.3,3221.0,0.14127643]
[1768843945031,0.87469294,3222.2,3221.0,0.14127643]
[1768843945231,0.87469294,3222.1,3221.0,0.14127643]
[1768843945432,1.732,3222.5,3221.0,0.14127643]